[Event "Nové Hrady - Blesk"]
[Site "Nové Hrady, Czech Republic"]
[Date "2023.08.17"]
[Round "9.3"]
[White "Hostička, František"]
[Black "Šimůnek, Jakub Šimon"]
[Result "0-1"]
[TimeControl "2x3+2s"]
[WhiteFideId "302295"]
[BlackFideId "23709464"]
[WhiteElo "2074"]
[BlackElo "1921"]

1. e4 {[%emt 00:07:02]} e6 {[%emt 00:00:01]} 2. d4 d5 {[%emt 00:00:01]} 3. e5
c5 {[%emt 00:00:01]} 4. c3 {[%clk 00:03:06]} Nc6 5. Be3 cxd4 {[%clk 00:03:06]}
{[%emt 00:00:04]} 6. cxd4 {[%clk 00:03:10]} Bd7 {[%clk 00:03:08]} 7. Nf3 {[%clk
00:03:08]} {[%emt 00:00:05]} Nge7 {[%clk 00:03:05]} {[%emt 00:00:05]} 8. Nc3
{[%clk 00:03:03]} {[%emt 00:00:07]} Nf5 {[%clk 00:03:00]} {[%emt 00:00:07]} 9.
Bd3 {[%clk 00:03:03]} {[%emt 00:00:03]} Nxe3 {[%clk 00:02:58]} {[%emt
00:00:04]} 10. fxe3 {[%clk 00:03:04]} Bb4 {[%clk 00:02:57]} {[%emt 00:00:03]}
11. O-O {[%clk 00:03:01]} {[%emt 00:00:05]} O-O {[%clk 00:02:53]} {[%emt
00:00:07]} 12. Qc2 {[%clk 00:02:54]} {[%emt 00:00:09]} h6 {[%clk 00:02:50]}
{[%emt 00:00:04]} 13. Rf2 {[%clk 00:02:54]} {[%emt 00:00:02]} Rc8 {[%clk
00:02:46]} {[%emt 00:00:06]} 14. Qd2 {[%clk 00:02:30]} {[%emt 00:00:25]} Qa5
{[%clk 00:02:36]} {[%emt 00:00:13]} 15. a3 {[%clk 00:01:55]} {[%emt 00:00:37]}
Be7 {[%clk 00:02:03]} {[%emt 00:00:36]} 16. Raf1 {[%clk 00:01:48]} {[%emt
00:00:09]} a6 {[%clk 00:01:48]} {[%emt 00:00:17]} 17. h3 {[%clk 00:01:34]}
{[%emt 00:00:16]} b5 {[%clk 00:01:47]} {[%emt 00:00:03]} 18. Nh2 {[%clk
00:01:20]} {[%emt 00:00:15]} b4 {[%clk 00:01:33]} {[%emt 00:00:17]} 19. axb4
{[%clk 00:01:18]} {[%emt 00:00:03]} Bxb4 {[%clk 00:01:23]} {[%emt 00:00:13]} 20.
Ng4 {[%clk 00:01:18]} {[%emt 00:00:01]} Ne7 {[%clk 00:01:23]} {[%emt 00:00:02]}
21. Nf6+ gxf6 {[%clk 00:01:14]} 22. Rxf6 {[%clk 00:01:03]} {[%emt 00:00:04]}
Bxc3 {[%clk 00:00:58]} {[%emt 00:00:17]} 23. bxc3 {[%clk 00:01:01]} {[%emt
00:00:04]} Qxc3 {[%clk 00:00:59]} {[%emt 00:00:01]} 24. Qe2 {[%clk 00:01:00]}
{[%emt 00:00:03]} Nf5 {[%clk 00:00:51]} {[%emt 00:00:11]} 25. Qg4+ {[%clk
00:00:41]} {[%emt 00:00:20]} Kh7 {[%clk 00:00:28]} {[%emt 00:00:26]} 26. Bxf5+
{[%clk 00:00:19]} {[%emt 00:00:23]} Qxe3+ {[%clk 00:00:17]} {[%emt 00:00:13]}
27. Kh1+ {[%clk 00:00:21]} exf5 {[%clk 00:00:17]} {[%emt 00:00:02]} 28. Qh5
{[%clk 00:00:18]} {[%emt 00:00:05]} Qg5 {[%clk 00:00:06]} {[%emt 00:00:13]} 29.
Rxf7+ {[%emt 00:00:04]} Rxf7 {[%emt 00:00:01]} 30. Qxf7+ {[%clk 00:00:16]} Qg7
{[%clk 00:00:09]} 31. e6 {[%clk 00:00:09]} {[%emt 00:00:10]} Qxf7 {[%clk
00:00:09]} {[%emt 00:00:02]} 32. exf7 {[%clk 00:00:10]} Rf8 {[%clk 00:00:11]}
33. Ra1 {[%clk 00:00:11]} Bb5 {[%clk 00:00:10]} {[%emt 00:00:05]} 34. Rc1
{[%emt 00:00:02]} Rxf7 35. Rc5 {[%clk 00:00:12]} Rd7 {[%clk 00:00:13]} 36. Kh2
{[%clk 00:00:13]} Kg6 {[%clk 00:00:13]} {[%emt 00:00:05]} 37. Kg3 {[%emt
00:00:02]} Kg5 {[%clk 00:00:14]} 38. h4+ {[%clk 00:00:15]} Kf6 {[%clk
00:00:14]} {[%emt 00:00:02]} 39. Kf4 {[%clk 00:00:16]} {[%emt 00:00:01]} Bc4
{[%clk 00:00:14]} {[%emt 00:00:02]} 40. Rc6+ {[%clk 00:00:17]} Kg7 {[%emt
00:00:02]} 41. h5 Rf7 {[%clk 00:00:13]} {[%emt 00:00:04]} 42. Rg6+ {[%clk
00:00:18]} {[%emt 00:00:01]} Kh7 {[%clk 00:00:14]} 43. Rd6 {[%clk 00:00:17]}
{[%emt 00:00:05]} Ra7 {[%clk 00:00:13]} {[%emt 00:00:03]} 44. Kxf5 {[%emt
00:00:11]} a5 {[%emt 00:00:01]} 45. g4 {[%clk 00:00:10]} a4 {[%clk 00:00:15]}
46. g5 hxg5 {[%clk 00:00:16]} 47. h6 {[%clk 00:00:12]} a3 {[%clk 00:00:16]}
{[%emt 00:00:02]} 48. Kxg5 {[%clk 00:00:13]} a2 {[%clk 00:00:17]} {[%emt
00:00:03]} 49. Rd7+ {[%clk 00:00:11]} {[%emt 00:00:03]} Rxd7 {[%clk 00:00:18]}
0-1

[Event "Nové Hrady - Blesk"]
[Site "Nové Hrady, Czech Republic"]
[Date "2023.08.17"]
[Round "9.4"]
[White "Richtrova, Eliska"]
[Black "Hak, David"]
[Result "0-1"]
[TimeControl "2x3+2s"]
[WhiteFideId "300683"]
[BlackFideId "377007"]
[WhiteElo "2122"]
[BlackElo "2037"]

1. e4 {[%clk 00:03:03]} {[%emt 00:00:02]} c5 {[%clk 00:03:04]} 2. Nc3 {[%clk
00:03:04]} Nc6 {[%clk 00:03:04]} {[%emt 00:00:04]} 3. g3 {[%clk 00:03:05]} g6
{[%clk 00:02:53]} {[%emt 00:00:12]} 4. Bg2 {[%clk 00:03:06]} Bg7 {[%clk
00:02:54]} 5. d3 {[%clk 00:03:08]} d6 {[%clk 00:02:56]} 6. Be3 {[%clk
00:03:09]} Nf6 {[%emt 00:00:18]} 7. h3 O-O {[%clk 00:02:37]} {[%emt 00:00:10]}
8. Nge2 {[%clk 00:03:11]} Rb8 {[%clk 00:02:22]} {[%emt 00:00:18]} 9. g4 {[%clk
00:03:11]} b5 {[%clk 00:02:15]} {[%emt 00:00:10]} 10. Ng3 {[%clk 00:03:12]} b4
{[%clk 00:02:01]} {[%emt 00:00:16]} 11. Nce2 {[%clk 00:03:12]} {[%emt
00:00:02]} Ne8 {[%clk 00:01:33]} {[%emt 00:00:30]} 12. d4 {[%clk 00:02:56]}
{[%emt 00:00:18]} cxd4 {[%clk 00:01:24]} {[%emt 00:00:11]} 13. Nxd4 {[%clk
00:02:57]} {[%emt 00:00:02]} Bb7 {[%clk 00:01:21]} {[%emt 00:00:05]} 14. O-O
{[%clk 00:02:53]} {[%emt 00:00:05]} Nc7 {[%clk 00:01:16]} {[%emt 00:00:07]} 15.
Nxc6 {[%clk 00:02:42]} {[%emt 00:00:13]} Bxc6 {[%clk 00:01:16]} {[%emt
00:00:02]} 16. Bxa7 {[%clk 00:02:42]} {[%emt 00:00:02]} Rb7 {[%clk 00:00:49]}
{[%emt 00:00:29]} 17. Bd4 {[%clk 00:02:42]} {[%emt 00:00:02]} Bxd4 {[%clk
00:00:48]} {[%emt 00:00:03]} 18. Qxd4 {[%clk 00:02:43]} Ne6 {[%clk 00:00:49]}
19. Qe3 {[%clk 00:02:31]} {[%emt 00:00:16]} Qa5 {[%clk 00:00:49]} {[%emt
00:00:02]} 20. Ne2 {[%clk 00:02:08]} {[%emt 00:00:25]} Rc7 {[%clk 00:00:38]}
{[%emt 00:00:13]} 21. Rfc1 {[%clk 00:01:44]} {[%emt 00:00:26]} Ba4 {[%clk
00:00:36]} {[%emt 00:00:05]} 22. c3 {[%clk 00:01:31]} {[%emt 00:00:15]} Rfc8
{[%clk 00:00:28]} {[%emt 00:00:09]} 23. cxb4 {[%clk 00:01:26]} {[%emt
00:00:06]} Qxb4 {[%clk 00:00:28]} {[%emt 00:00:03]} 24. b3 {[%clk 00:01:17]}
{[%emt 00:00:11]} Bb5 {[%clk 00:00:23]} {[%emt 00:00:07]} 25. Bf1 {[%clk
00:01:05]} {[%emt 00:00:14]} Nc5 {[%clk 00:00:15]} {[%emt 00:00:11]} 26. Nd4
{[%clk 00:00:39]} {[%emt 00:00:27]} Bxf1 {[%clk 00:00:15]} 27. Rxf1 {[%clk
00:00:40]} e5 {[%clk 00:00:16]} 28. Nc2 {[%clk 00:00:33]} {[%emt 00:00:12]}
Qxe4 {[%clk 00:00:17]} {[%emt 00:00:02]} 29. Qxe4 {[%clk 00:00:34]} Nxe4 {[%clk
00:00:18]} 30. Ne3 {[%clk 00:00:35]} Nc3 {[%clk 00:00:16]} {[%emt 00:00:06]} 31.
Kg2 {[%clk 00:00:35]} {[%emt 00:00:02]} Ra8 {[%clk 00:00:16]} {[%emt 00:00:02]}
32. a3 {[%clk 00:00:34]} {[%emt 00:00:03]} Rca7 {[%clk 00:00:16]} {[%emt
00:00:02]} 33. Nc4 {[%clk 00:00:31]} {[%emt 00:00:05]} d5 {[%clk 00:00:13]}
{[%emt 00:00:05]} 34. Nxe5 {[%clk 00:00:31]} Rxa3 {[%clk 00:00:15]} 35. Rxa3
{[%clk 00:00:32]} {[%emt 00:00:04]} Rxa3 {[%clk 00:00:16]} 36. b4 {[%clk
00:00:31]} {[%emt 00:00:04]} Rb3 {[%clk 00:00:16]} 37. Nc6 {[%clk 00:00:31]}
{[%emt 00:00:02]} Rb2 {[%clk 00:00:14]} {[%emt 00:00:04]} 38. Rc1 {[%clk
00:00:18]} {[%emt 00:00:15]} Ne4 {[%clk 00:00:15]} 39. Ne7+ {[%clk 00:00:18]}
{[%emt 00:00:02]} Kg7 {[%clk 00:00:16]} 40. Nxd5 {[%clk 00:00:19]} Rxf2+ {[%clk
00:00:14]} {[%emt 00:00:06]} 41. Kg1 {[%clk 00:00:20]} Rb2 {[%clk 00:00:14]}
{[%emt 00:00:03]} 42. Rc7 {[%clk 00:00:18]} {[%emt 00:00:05]} Ng5 {[%clk
00:00:14]} {[%emt 00:00:02]} 43. Nf4 {[%clk 00:00:12]} {[%emt 00:00:07]} Nf3+
{[%clk 00:00:12]} {[%emt 00:00:04]} 44. Kf1 {[%clk 00:00:13]} Rxb4 {[%clk
00:00:12]} {[%emt 00:00:02]} 45. Ne6+ {[%clk 00:00:12]} {[%emt 00:00:03]} Kf6
{[%clk 00:00:13]} 46. Nd8 {[%clk 00:00:12]} {[%emt 00:00:02]} Ne5 {[%clk
00:00:11]} {[%emt 00:00:04]} 47. Ra7 {[%clk 00:00:10]} {[%emt 00:00:04]} Rb1+
{[%emt 00:00:03]} 48. Kg2 Rb2+ {[%clk 00:00:11]} {[%emt 00:00:01]} 49. Kg3
{[%clk 00:00:12]} {[%emt 00:00:01]} Rb3+ {[%clk 00:00:13]} 50. Kg2 {[%clk
00:00:13]} Rd3 {[%clk 00:00:09]} {[%emt 00:00:07]} 51. Ra8 {[%clk 00:00:09]}
{[%emt 00:00:08]} Rd7 {[%clk 00:00:08]} {[%emt 00:00:03]} 52. Ra6+ {[%clk
00:00:06]} {[%emt 00:00:05]} Kg5 {[%clk 00:00:07]} 53. Nc6 {[%clk 00:00:06]}
{[%emt 00:00:03]} Rd6 {[%clk 00:00:07]} {[%emt 00:00:02]} 54. Nb4 Rxa6 {[%emt
00:00:02]} 55. Nxa6 {[%clk 00:00:07]} Kh4 {[%clk 00:00:09]} {[%emt 00:00:01]}
56. Nc5 {[%clk 00:00:09]} {[%emt 00:00:02]} g5 {[%clk 00:00:06]} {[%emt
00:00:05]} 57. Ne4 {[%clk 00:00:10]} Ng6 {[%clk 00:00:05]} {[%emt 00:00:03]} 58.
Kf3 {[%clk 00:00:10]} h6 {[%clk 00:00:06]} {[%emt 00:00:03]} 59. Nd6 {[%clk
00:00:10]} {[%emt 00:00:02]} f6 {[%clk 00:00:06]} 60. Ne4 {[%clk 00:00:10]}
{[%emt 00:00:03]} Kxh3 {[%clk 00:00:07]} {[%emt 00:00:02]} 61. Nxf6 {[%clk
00:00:11]} Ne5+ {[%clk 00:00:08]} 62. Ke4 {[%clk 00:00:10]} {[%emt 00:00:04]}
Nxg4 {[%clk 00:00:09]} 63. Nh5 {[%clk 00:00:11]} {[%emt 00:00:02]} Nf2+ {[%clk
00:00:09]} {[%emt 00:00:02]} 64. Kf5 {[%clk 00:00:12]} g4 {[%clk 00:00:09]}
{[%emt 00:00:03]} 65. Nf4+ {[%clk 00:00:13]} Kg3 {[%clk 00:00:09]} {[%emt
00:01:00]} 66. Nh5+ {[%clk 00:01:15]} Kh4 {[%clk 00:00:10]} 67. Kg6 {[%clk
00:01:16]} Ne4 {[%clk 00:00:06]} {[%emt 00:00:09]} 68. Kxh6 {[%clk 00:01:14]}
{[%emt 00:00:03]} Ng3 {[%clk 00:00:06]} 69. Nf6 {[%clk 00:01:13]} {[%emt
00:00:05]} Nf5+ {[%clk 00:00:07]} {[%emt 00:00:02]} 70. Kg6 {[%clk 00:01:14]}
g3 {[%clk 00:00:07]} 71. Kxf5 {[%clk 00:01:11]} {[%emt 00:00:07]} g2 {[%clk
00:00:09]} 72. Ne4 {[%clk 00:01:12]} g1=Q {[%clk 00:00:09]} {[%emt 00:00:04]}
73. Kg6 {[%emt 00:00:07]} 0-1

[Event "Nové Hrady - Blesk"]
[Site "Nové Hrady, Czech Republic"]
[Date "2023.08.17"]
[Round "9.5"]
[White "Blazek, Jiri"]
[Black "Vybiral, Zdenek"]
[Result "0-1"]
[TimeControl "2x3+2s"]
[WhiteFideId "330515"]
[BlackFideId "305200"]
[WhiteElo "2061"]
[BlackElo "2158"]

1. d4 {[%clk 00:03:01]} {[%emt 00:00:03]} Nf6 2. e3 {[%emt 00:00:01]} g6 {[%clk
00:02:59]} {[%emt 00:00:06]} 3. Bd3 {[%clk 00:03:04]} Bg7 {[%clk 00:03:00]} 4.
Nd2 {[%clk 00:03:05]} {[%emt 00:00:03]} O-O {[%clk 00:02:58]} {[%emt 00:00:03]}
5. Ne2 {[%clk 00:03:06]} d5 {[%clk 00:02:58]} {[%emt 00:00:04]} 6. f4 {[%clk
00:03:04]} {[%emt 00:00:04]} c5 {[%clk 00:02:58]} {[%emt 00:00:02]} 7. c3
{[%clk 00:03:03]} {[%emt 00:00:02]} b6 {[%clk 00:02:29]} {[%emt 00:00:32]} 8.
O-O {[%clk 00:02:56]} {[%emt 00:00:09]} Ba6 {[%clk 00:02:30]} 9. Bxa6 {[%clk
00:02:48]} {[%emt 00:00:10]} Nxa6 {[%emt 00:00:02]} 10. Ng3 e6 {[%clk
00:02:17]} {[%emt 00:00:16]} 11. Nf3 {[%clk 00:02:46]} {[%emt 00:00:05]} Nc7
{[%clk 00:02:05]} {[%emt 00:00:14]} 12. Ne5 {[%clk 00:02:43]} {[%emt 00:00:05]}
Nb5 {[%clk 00:02:03]} {[%emt 00:00:04]} 13. Ng4 {[%clk 00:02:17]} {[%emt
00:00:27]} Nd6 {[%clk 00:01:53]} {[%emt 00:00:12]} 14. Nxf6+ {[%clk 00:02:17]}
{[%emt 00:00:03]} Bxf6 {[%clk 00:01:53]} {[%emt 00:00:02]} 15. Qf3 {[%clk
00:02:06]} {[%emt 00:00:12]} Bh4 {[%clk 00:01:52]} {[%emt 00:00:04]} 16. Ne2
{[%clk 00:01:41]} {[%emt 00:00:26]} Ne4 {[%clk 00:01:51]} {[%emt 00:00:03]} 17.
g3 {[%clk 00:01:31]} {[%emt 00:00:12]} Be7 {[%clk 00:01:49]} {[%emt 00:00:04]}
18. g4 {[%clk 00:01:26]} {[%emt 00:00:08]} f5 {[%clk 00:01:50]} 19. g5 {[%clk
00:01:25]} {[%emt 00:00:04]} b5 {[%clk 00:01:44]} {[%emt 00:00:07]} 20. Ng3
{[%clk 00:01:23]} {[%emt 00:00:04]} Nd6 {[%clk 00:01:31]} {[%emt 00:00:15]} 21.
Kh1 {[%clk 00:01:22]} {[%emt 00:00:03]} Qc7 {[%clk 00:01:21]} {[%emt 00:00:12]}
22. Bd2 {[%clk 00:01:22]} {[%emt 00:00:02]} Nc4 {[%clk 00:01:21]} {[%emt
00:00:02]} 23. Bc1 {[%clk 00:01:18]} {[%emt 00:00:05]} b4 {[%clk 00:01:19]}
{[%emt 00:00:06]} 24. b3 {[%clk 00:01:03]} {[%emt 00:00:17]} Nd6 {[%clk
00:01:15]} {[%emt 00:00:06]} 25. Bb2 {[%clk 00:00:57]} {[%emt 00:00:08]} a5
{[%clk 00:01:02]} {[%emt 00:00:15]} 26. Rac1 {[%clk 00:00:46]} {[%emt
00:00:12]} c4 {[%clk 00:01:02]} {[%emt 00:00:03]} 27. h4 {[%clk 00:00:36]}
{[%emt 00:00:11]} Qb6 {[%clk 00:00:48]} {[%emt 00:00:16]} 28. h5 {[%clk
00:00:34]} {[%emt 00:00:05]} Rf7 {[%clk 00:00:48]} 29. Kg2 {[%clk 00:00:32]}
{[%emt 00:00:04]} a4 {[%clk 00:00:48]} {[%emt 00:00:03]} 30. bxc4 {[%clk
00:00:28]} {[%emt 00:00:06]} Nxc4 {[%clk 00:00:48]} 31. Rc2 {[%clk 00:00:26]}
{[%emt 00:00:04]} b3 {[%clk 00:00:45]} {[%emt 00:00:06]} 32. axb3 {[%clk
00:00:25]} {[%emt 00:00:03]} axb3 {[%clk 00:00:46]} 33. Re2 {[%clk 00:00:22]}
{[%emt 00:00:04]} Ra2 {[%clk 00:00:46]} {[%emt 00:00:03]} 34. Rff2 {[%emt
00:00:08]} Qa7 {[%emt 00:00:10]} 35. hxg6 {[%clk 00:00:14]} {[%emt 00:00:02]}
hxg6 {[%clk 00:00:41]} 36. Nf1 {[%emt 00:00:15]} Ba3 {[%clk 00:00:30]} 37. Bxa3
{[%clk 00:00:10]} {[%emt 00:00:05]} Qxa3 {[%emt 00:00:08]} 38. e4 {[%clk
00:00:05]} {[%emt 00:00:01]} fxe4 {[%clk 00:00:28]} {[%emt 00:00:04]} 39. Qg4
{[%clk 00:00:07]} Qa6 {[%clk 00:00:16]} {[%emt 00:00:15]} 40. Ne3 {[%clk
00:00:05]} {[%emt 00:00:03]} Nxe3+ {[%clk 00:00:14]} {[%emt 00:00:04]} 41. Rxe3
{[%clk 00:00:07]} Rxf2+ {[%clk 00:00:13]} {[%emt 00:00:04]} 42. Kxf2 {[%clk
00:00:07]} b2 {[%clk 00:00:14]} 43. Re1 {[%clk 00:00:08]} {[%emt 00:00:03]} Qd3
{[%clk 00:00:10]} {[%emt 00:00:07]} 44. Qxe6 {[%clk 00:00:08]} {[%emt
00:00:01]} Qf3+ {[%clk 00:00:11]} {[%emt 00:00:02]} 45. Kg1 {[%clk 00:00:09]}
Qg3+ {[%clk 00:00:11]} {[%emt 00:00:02]} 46. Kh1 Qxe1+ 47. Kh2 {[%clk
00:00:09]} {[%emt 00:00:02]} Qh4+ {[%clk 00:00:12]} 48. Kg2 {[%clk 00:00:10]}
{[%emt 00:00:01]} Qxf4 {[%clk 00:00:11]} {[%emt 00:00:02]} 49. Qxg6+ {[%clk
00:00:09]} {[%emt 00:00:03]} Kf8 {[%clk 00:00:12]} {[%emt 00:00:02]} 50. Qh6+
{[%clk 00:00:10]} Ke7 {[%clk 00:00:13]} 51. Qb6 {[%clk 00:00:10]} {[%emt
00:00:03]} Qf2+ {[%clk 00:00:13]} {[%emt 00:00:01]} 52. Kh3 {[%clk 00:00:11]}
{[%emt 00:00:02]} Rh7+ {[%clk 00:00:14]} 53. Kg4 {[%clk 00:00:12]} Qf3# {[%clk
00:00:15]} 0-1

[Event "Nové Hrady - Blesk"]
[Site "Nové Hrady, Czech Republic"]
[Date "2023.08.17"]
[Round "9.6"]
[White "Prinz, Hubert"]
[Black "Valenz, Miroslav"]
[Result "1-0"]
[TimeControl "2x3+2s"]
[WhiteFideId "1639447"]
[BlackFideId "326283"]
[WhiteElo "1884"]
[BlackElo "1929"]

1. d4 {[%clk 00:03:03]} Nf6 {[%clk 00:03:03]} {[%emt 00:00:02]} 2. Nf3 {[%clk
00:03:04]} d6 {[%clk 00:03:04]} 3. e3 {[%clk 00:03:05]} g6 {[%clk 00:03:06]} 4.
Bd3 Bg7 {[%emt 00:00:05]} 5. Nbd2 {[%clk 00:03:07]} O-O {[%clk 00:03:07]}
{[%emt 00:00:02]} 6. O-O {[%clk 00:03:08]} Nc6 {[%clk 00:03:07]} {[%emt
00:00:02]} 7. c3 {[%clk 00:03:09]} e5 {[%clk 00:03:08]} 8. Re1 {[%clk
00:02:57]} {[%emt 00:00:16]} Qe7 {[%clk 00:02:58]} {[%emt 00:00:13]} 9. e4
{[%clk 00:02:57]} {[%emt 00:00:02]} Bg4 {[%clk 00:02:55]} {[%emt 00:00:05]} 10.
d5 {[%clk 00:02:55]} {[%emt 00:00:04]} Nd8 {[%clk 00:02:50]} {[%emt 00:00:07]}
11. h3 {[%clk 00:02:55]} Bd7 {[%clk 00:02:49]} {[%emt 00:00:04]} 12. a4 {[%clk
00:02:44]} {[%emt 00:00:13]} Nh5 {[%clk 00:02:49]} {[%emt 00:00:02]} 13. Nf1
{[%clk 00:02:40]} {[%emt 00:00:05]} f5 {[%clk 00:02:46]} {[%emt 00:00:05]} 14.
Bg5 {[%clk 00:02:27]} {[%emt 00:00:16]} Qe8 {[%clk 00:02:35]} {[%emt 00:00:14]}
15. Ng3 {[%clk 00:02:15]} {[%emt 00:00:13]} Nxg3 {[%clk 00:02:35]} {[%emt
00:00:02]} 16. fxg3 {[%clk 00:02:15]} {[%emt 00:00:02]} f4 {[%clk 00:02:28]}
{[%emt 00:00:09]} 17. gxf4 {[%clk 00:01:57]} {[%emt 00:00:19]} exf4 {[%clk
00:02:23]} {[%emt 00:00:07]} 18. Bxd8 {[%clk 00:01:47]} {[%emt 00:00:13]} Rxd8
{[%clk 00:02:18]} {[%emt 00:00:06]} 19. Qe2 {[%clk 00:01:25]} {[%emt 00:00:25]}
Qe7 {[%clk 00:02:05]} {[%emt 00:00:15]} 20. Bc2 {[%clk 00:01:00]} {[%emt
00:00:27]} Rde8 {[%clk 00:02:06]} 21. Rad1 {[%clk 00:00:52]} {[%emt 00:00:10]}
g5 {[%clk 00:02:04]} {[%emt 00:00:04]} 22. Nd4 {[%clk 00:00:51]} {[%emt
00:00:03]} Kh8 {[%clk 00:01:57]} {[%emt 00:00:09]} 23. Qh5 {[%clk 00:00:52]}
Be5 {[%clk 00:00:53]} {[%emt 00:01:06]} 24. Rf1 {[%clk 00:00:48]} {[%emt
00:00:06]} Rg8 {[%clk 00:00:46]} {[%emt 00:00:09]} 25. Nf5 {[%clk 00:00:44]}
{[%emt 00:00:05]} Bxf5 {[%clk 00:00:44]} {[%emt 00:00:04]} 26. exf5 {[%clk
00:00:45]} Qf6 {[%clk 00:00:45]} {[%emt 00:00:03]} 27. g4 {[%clk 00:00:42]}
{[%emt 00:00:05]} Rc8 {[%clk 00:00:27]} {[%emt 00:00:20]} 28. Rde1 {[%clk
00:00:41]} {[%emt 00:00:03]} c6 {[%clk 00:00:28]} 29. Rd1 {[%clk 00:00:41]}
{[%emt 00:00:02]} Rgf8 {[%clk 00:00:24]} {[%emt 00:00:05]} 30. Kg2 {[%clk
00:00:41]} {[%emt 00:00:02]} cxd5 {[%clk 00:00:24]} {[%emt 00:00:02]} 31. Rxd5
{[%clk 00:00:42]} Rc7 {[%clk 00:00:20]} {[%emt 00:00:08]} 32. Rfd1 {[%clk
00:00:42]} {[%emt 00:00:02]} a6 {[%clk 00:00:21]} {[%emt 00:00:02]} 33. Rh1
{[%clk 00:00:38]} {[%emt 00:00:05]} b6 {[%clk 00:00:16]} {[%emt 00:00:08]} 34.
h4 {[%clk 00:00:39]} gxh4 {[%clk 00:00:12]} {[%emt 00:00:06]} 35. Qxh4 {[%clk
00:00:40]} Qg7 {[%clk 00:00:05]} {[%emt 00:00:10]} 36. Kf3 {[%clk 00:00:41]}
{[%emt 00:00:01]} Rg8 {[%clk 00:00:06]} 37. Rd2 {[%clk 00:00:24]} {[%emt
00:00:20]} Rc5 {[%clk 00:00:06]} {[%emt 00:00:02]} 38. Rdh2 {[%clk 00:00:25]}
Rc7 {[%clk 00:00:07]} {[%emt 00:00:01]} 39. f6 {[%emt 00:00:04]} Bxf6 {[%emt
00:00:01]} 40. Qxh7+ {[%clk 00:00:24]} Qxh7 {[%clk 00:00:00]} {[%emt 00:00:08]}
41. Rxh7+ {[%clk 00:00:24]} {[%emt 00:00:02]} 1-0

[Event "Nové Hrady - Blesk"]
[Site "Nové Hrady, Czech Republic"]
[Date "2023.08.17"]
[Round "9.8"]
[White "Sadil, Antonin"]
[Black "Rausch, Rudolf"]
[Result "0-1"]
[TimeControl "2x3+2s"]
[WhiteFideId "23735597"]
[BlackFideId "1639455"]
[WhiteElo "1697"]
[BlackElo "1806"]

1. e4 {[%clk 00:03:02]} {[%emt 00:00:03]} g6 {[%clk 00:03:04]} 2. d4 {[%emt
00:00:02]} d6 {[%emt 00:00:01]} 3. Nc3 {[%clk 00:03:02]} Bg7 {[%clk 00:03:06]}
4. Be3 {[%emt 00:00:02]} Nf6 {[%emt 00:00:01]} 5. f3 {[%clk 00:03:04]} {[%emt
00:00:01]} Nc6 {[%clk 00:03:09]} 6. Qd2 {[%clk 00:03:05]} e5 {[%clk 00:03:10]}
{[%emt 00:00:03]} 7. d5 {[%clk 00:03:02]} {[%emt 00:00:05]} Ne7 {[%clk
00:03:11]} 8. O-O-O {[%clk 00:03:02]} O-O {[%clk 00:03:12]} 9. Bh6 {[%clk
00:02:57]} {[%emt 00:00:10]} a6 {[%clk 00:03:10]} {[%emt 00:00:05]} 10. h4
{[%clk 00:02:51]} {[%emt 00:00:07]} Nh5 {[%clk 00:03:11]} {[%emt 00:00:02]} 11.
Bxg7 {[%clk 00:02:49]} {[%emt 00:00:04]} Kxg7 {[%clk 00:03:12]} 12. g4 {[%clk
00:02:37]} {[%emt 00:00:14]} Ng3 {[%clk 00:03:12]} 13. Rh3 {[%clk 00:02:32]}
{[%emt 00:00:09]} Nxf1 {[%clk 00:03:10]} {[%emt 00:00:04]} 14. Rxf1 {[%clk
00:02:29]} {[%emt 00:00:05]} h5 {[%clk 00:03:10]} {[%emt 00:00:02]} 15. Rg3
{[%clk 00:02:22]} {[%emt 00:00:08]} hxg4 {[%clk 00:03:07]} {[%emt 00:00:06]} 16.
fxg4 {[%clk 00:02:19]} {[%emt 00:00:05]} Ng8 {[%clk 00:03:05]} {[%emt
00:00:05]} 17. h5 {[%clk 00:02:04]} {[%emt 00:00:16]} Qh4 {[%clk 00:02:57]}
{[%emt 00:00:09]} 18. Nge2 {[%clk 00:01:53]} {[%emt 00:00:14]} Bxg4 {[%clk
00:02:43]} {[%emt 00:00:17]} 19. hxg6 {[%clk 00:01:11]} {[%emt 00:00:43]} fxg6
{[%clk 00:02:43]} {[%emt 00:00:02]} 20. Rfg1 {[%clk 00:01:07]} {[%emt
00:00:06]} Bh5 {[%clk 00:02:33]} {[%emt 00:00:12]} 21. Nd1 {[%clk 00:00:45]}
{[%emt 00:00:24]} Rf6 {[%clk 00:02:16]} {[%emt 00:00:20]} 22. Ne3 {[%clk
00:00:44]} {[%emt 00:00:02]} Qxe4 {[%clk 00:01:49]} {[%emt 00:00:29]} 23. Rh3
{[%clk 00:00:21]} {[%emt 00:00:24]} Bxe2 {[%clk 00:01:31]} {[%emt 00:00:21]} 24.
Qxe2 {[%clk 00:00:20]} {[%emt 00:00:04]} Raf8 {[%clk 00:01:27]} {[%emt
00:00:05]} 25. Qh5 {[%clk 00:00:09]} {[%emt 00:00:13]} Kf7 {[%clk 00:01:14]}
{[%emt 00:00:15]} 26. Ng4 {[%clk 00:00:05]} {[%emt 00:00:06]} Qf4+ {[%clk
00:01:14]} {[%emt 00:00:03]} 27. Kb1 {[%clk 00:00:05]} gxh5 {[%clk 00:01:12]}
{[%emt 00:00:05]} 0-1